[Event "*** Titled Tuesday Blitz"]
[Site "Chess.com"]
[Date "2019.06.04"]
[Round "6"]
[White "Babas"]
[Black "el-reptiliano"]
[Result "1/2-1/2"]
[WhiteElo "2394"]
[BlackElo "2194"]
[TimeControl "180+2"]
[EndTime "14:22:05 PDT"]
[Termination "Game drawn by 50-move rule"]

1. c4 {[%clk 0:03:01.9]} 1... c5 {[%clk 0:02:57.7]} 2. Nc3 {[%clk 0:03:02.3]}
2... Nc6 {[%clk 0:02:58]} 3. g3 {[%clk 0:03:03.7]} 3... g6 {[%clk 0:02:58.7]} 4.
Bg2 {[%clk 0:03:05.3]} 4... Bg7 {[%clk 0:03:00.2]} 5. e3 {[%clk 0:03:06.9]} 5...
e5 {[%clk 0:03:01.6]} 6. Nge2 {[%clk 0:03:08.4]} 6... Nge7 {[%clk 0:03:00.1]} 7.
O-O {[%clk 0:03:09.8]} 7... O-O {[%clk 0:03:01.2]} 8. a3 {[%clk 0:03:10.8]} 8...
d6 {[%clk 0:02:59.6]} 9. Rb1 {[%clk 0:03:11]} 9... Be6 {[%clk 0:03:00.3]} 10. d3
{[%clk 0:03:11.4]} 10... d5 {[%clk 0:03:01]} 11. cxd5 {[%clk 0:03:11.5]} 11...
Nxd5 {[%clk 0:03:02.9]} 12. Bd2 {[%clk 0:02:11.2]} 12... Nxc3 {[%clk 0:02:23.1]}
13. Bxc3 {[%clk 0:02:12]} 13... Bf5 {[%clk 0:02:20.7]} 14. e4 {[%clk 0:01:46.1]}
14... Bg4 {[%clk 0:02:16.8]} 15. h3 {[%clk 0:01:41.4]} 15... Be6 {[%clk
0:02:17.1]} 16. f4 {[%clk 0:01:41.7]} 16... Nd4 {[%clk 0:02:07.2]} 17. Nxd4
{[%clk 0:01:30.3]} 17... cxd4 {[%clk 0:01:55.3]} 18. Bb4 {[%clk 0:01:18]} 18...
Re8 {[%clk 0:01:55.9]} 19. f5 {[%clk 0:01:16.6]} 19... Bd7 {[%clk 0:01:45.3]}
20. Qb3 {[%clk 0:01:07.9]} 20... g5 {[%clk 0:01:27.7]} 21. Bf3 {[%clk
0:00:49.7]} 21... Qb6 {[%clk 0:01:05.6]} 22. Bh5 {[%clk 0:00:40.8]} 22... Qf6
{[%clk 0:01:06.8]} 23. Rbc1 {[%clk 0:00:35.4]} 23... Rec8 {[%clk 0:01:06.7]} 24.
Qd5 {[%clk 0:00:22.3]} 24... Bc6 {[%clk 0:01:03.8]} 25. Qb3 {[%clk 0:00:19.1]}
25... Bf8 {[%clk 0:00:57.9]} 26. Bd2 {[%clk 0:00:18.1]} 26... h6 {[%clk
0:00:43]} 27. Rf2 {[%clk 0:00:15.7]} 27... Rc7 {[%clk 0:00:36.9]} 28. h4 {[%clk
0:00:16.6]} 28... Rac8 {[%clk 0:00:36.7]} 29. hxg5 {[%clk 0:00:17.7]} 29... hxg5
{[%clk 0:00:38.6]} 30. Rh2 {[%clk 0:00:18]} 30... Ba4 {[%clk 0:00:36.7]} 31.
Qxa4 {[%clk 0:00:17]} 31... Rxc1+ {[%clk 0:00:37.9]} 32. Bxc1 {[%clk 0:00:18.1]}
32... Rxc1+ {[%clk 0:00:39.8]} 33. Kg2 {[%clk 0:00:19.3]} 33... Qc6 {[%clk
0:00:27.5]} 34. Qxc6 {[%clk 0:00:19.4]} 34... bxc6 {[%clk 0:00:24.5]} 35. Kh3
{[%clk 0:00:17.6]} 35... f6 {[%clk 0:00:17.5]} 36. Kg4 {[%clk 0:00:18.8]} 36...
Kg7 {[%clk 0:00:17.2]} 37. Bg6 {[%clk 0:00:18.2]} 37... Kg8 {[%clk 0:00:18.4]}
38. Bh7+ {[%clk 0:00:18]} 38... Kg7 {[%clk 0:00:19]} 39. Bg6 {[%clk 0:00:19.6]}
39... Kg8 {[%clk 0:00:20.5]} 40. Be8 {[%clk 0:00:19.4]} 40... Bc5 {[%clk
0:00:16]} 41. Bxc6 {[%clk 0:00:19.5]} 41... Bb6 {[%clk 0:00:16.7]} 42. Bd5+
{[%clk 0:00:20.7]} 42... Kg7 {[%clk 0:00:18.2]} 43. Kf3 {[%clk 0:00:20.7]} 43...
Ba5 {[%clk 0:00:19.2]} 44. Re2 {[%clk 0:00:21.7]} 44... Rf1+ {[%clk 0:00:18.9]}
45. Kg2 {[%clk 0:00:22.5]} 45... Rc1 {[%clk 0:00:20.3]} 46. b4 {[%clk
0:00:23.5]} 46... Bb6 {[%clk 0:00:21.3]} 47. Rb2 {[%clk 0:00:24.6]} 47... Rd1
{[%clk 0:00:20.5]} 48. Bc4 {[%clk 0:00:25.8]} 48... Ra1 {[%clk 0:00:21.3]} 49.
Ra2 {[%clk 0:00:26]} 49... Rxa2+ {[%clk 0:00:22.4]} 50. Bxa2 {[%clk 0:00:27.2]}
50... Kh6 {[%clk 0:00:22.8]} 51. a4 {[%clk 0:00:25.4]} 51... a5 {[%clk
0:00:18.9]} 52. b5 {[%clk 0:00:26.6]} 52... Kg7 {[%clk 0:00:19.8]} 53. Kf3
{[%clk 0:00:27.4]} 53... Bc5 {[%clk 0:00:17.8]} 54. Ke2 {[%clk 0:00:28]} 54...
Kf8 {[%clk 0:00:18.5]} 55. Kf3 {[%clk 0:00:28.9]} 55... Kg7 {[%clk 0:00:18.6]}
56. Kg4 {[%clk 0:00:29.9]} 56... Bb6 {[%clk 0:00:19.1]} 57. Be6 {[%clk
0:00:31.8]} 57... Bc5 {[%clk 0:00:20.2]} 58. Bd5 {[%clk 0:00:33]} 58... Bb6
{[%clk 0:00:21.1]} 59. Kf3 {[%clk 0:00:34.6]} 59... Kf8 {[%clk 0:00:20.5]} 60.
Ke2 {[%clk 0:00:36.5]} 60... Ke7 {[%clk 0:00:21]} 61. Kd1 {[%clk 0:00:38.4]}
61... Kd6 {[%clk 0:00:21.7]} 62. Kc2 {[%clk 0:00:40.3]} 62... Kc5 {[%clk
0:00:17.5]} 63. Kb3 {[%clk 0:00:41.9]} 63... Bc7 {[%clk 0:00:17.2]} 64. Bc6
{[%clk 0:00:42.8]} 64... Bb6 {[%clk 0:00:18.1]} 65. Kc2 {[%clk 0:00:43.7]} 65...
Kd6 {[%clk 0:00:19.1]} 66. Bd5 {[%clk 0:00:34.9]} 66... Bc7 {[%clk 0:00:18.5]}
67. Kd2 {[%clk 0:00:34.5]} 67... Bb6 {[%clk 0:00:15.4]} 68. Ke2 {[%clk
0:00:35.5]} 68... Ke7 {[%clk 0:00:13.9]} 69. Kf3 {[%clk 0:00:37]} 69... Kf8
{[%clk 0:00:15.2]} 70. Kg4 {[%clk 0:00:38.9]} 70... Kg7 {[%clk 0:00:16.6]} 71.
Kh5 {[%clk 0:00:40.8]} 71... Bc5 {[%clk 0:00:17.6]} 72. Be6 {[%clk 0:00:42]}
72... Bb6 {[%clk 0:00:17.6]} 73. Bc8 {[%clk 0:00:43.2]} 73... Bc5 {[%clk
0:00:18.4]} 74. Ba6 {[%clk 0:00:45.1]} 74... Bb6 {[%clk 0:00:19.6]} 75. Bb7
{[%clk 0:00:47]} 75... Bc5 {[%clk 0:00:20.8]} 76. Ba8 {[%clk 0:00:48.9]} 76...
Bb6 {[%clk 0:00:22.1]} 77. Bd5 {[%clk 0:00:50.8]} 77... Bc5 {[%clk 0:00:23.4]}
78. Bb3 {[%clk 0:00:52.7]} 78... Bb6 {[%clk 0:00:24.5]} 79. Bd1 {[%clk
0:00:54.6]} 79... Bc5 {[%clk 0:00:25.6]} 80. Bg4 {[%clk 0:00:56.5]} 80... Bb6
{[%clk 0:00:26.7]} 81. Bh3 {[%clk 0:00:58.4]} 81... Bc5 {[%clk 0:00:27.9]} 82.
Bg2 {[%clk 0:01:00.3]} 82... Bb6 {[%clk 0:00:29.1]} 83. Bh1 {[%clk 0:01:02.2]}
83... Bc5 {[%clk 0:00:30.2]} 84. Bf3 {[%clk 0:01:04.1]} 84... Bb6 {[%clk
0:00:31.4]} 85. Be2 {[%clk 0:01:06]} 85... Bc5 {[%clk 0:00:32.7]} 86. Bd1 {[%clk
0:01:07.9]} 86... Bb6 {[%clk 0:00:33.8]} 87. Bb3 {[%clk 0:01:09.8]} 87... Bc5
{[%clk 0:00:35.1]} 88. Bd5 {[%clk 0:01:11.7]} 88... Bb6 {[%clk 0:00:36.2]} 89.
Bc6 {[%clk 0:01:13.6]} 89... Bc5 {[%clk 0:00:37.5]} 90. Be8 {[%clk 0:01:15.2]}
90... Bb6 {[%clk 0:00:38.6]} 91. Bg6 {[%clk 0:01:17.1]} 91... Bc5 {[%clk
0:00:39.7]} 92. Kg4 {[%clk 0:01:19]} 92... Kf8 {[%clk 0:00:39.8]} 93. Kf3 {[%clk
0:01:20.9]} 93... Ke7 {[%clk 0:00:40.6]} 94. Bh7 {[%clk 0:01:18.8]} 94... Bb6
{[%clk 0:00:37.4]} 95. Bg8 {[%clk 0:01:18.6]} 95... Bc5 {[%clk 0:00:38.2]} 96.
Bd5 {[%clk 0:01:19.5]} 96... Bb6 {[%clk 0:00:39.2]} 97. Ke2 {[%clk 0:01:20.3]}
97... Kd6 {[%clk 0:00:39.9]} 98. Kd2 {[%clk 0:01:21.3]} 98... Kc5 {[%clk
0:00:40.1]} 99. Bb3 {[%clk 0:01:20.9]} 99... Kb4 {[%clk 0:00:39.5]} 100. Bd1
{[%clk 0:01:22.1]} 100... Kc5 {[%clk 0:00:40]} 101. Ke2 {[%clk 0:01:23]} 101...
Kd6 {[%clk 0:00:40.4]} 102. Kf3 {[%clk 0:01:24.9]} 1/2-1/2

[Event "*** Titled Tuesday Blitz"]
[Site "Chess.com"]
[Date "2019.06.04"]
[Round "6"]
[White "Cryptochess"]
[Black "x-5963514717"]
[Result "0-1"]
[WhiteElo "2639"]
[BlackElo "2503"]
[TimeControl "180+2"]
[EndTime "14:22:33 PDT"]
[Termination "x-5963514717 won by checkmate"]

1. e4 {[%clk 0:03:01.9]} 1... e5 {[%clk 0:03:00.7]} 2. Nf3 {[%clk 0:03:03.1]}
2... Nc6 {[%clk 0:03:02]} 3. Bc4 {[%clk 0:03:04.8]} 3... Bc5 {[%clk 0:03:02.6]}
4. c3 {[%clk 0:03:06]} 4... Nf6 {[%clk 0:03:03.8]} 5. d3 {[%clk 0:03:07.3]} 5...
d6 {[%clk 0:03:02.5]} 6. O-O {[%clk 0:03:08.9]} 6... a6 {[%clk 0:03:03.6]} 7.
Bb3 {[%clk 0:03:10]} 7... Ba7 {[%clk 0:03:01]} 8. Nbd2 {[%clk 0:03:04.6]} 8...
O-O {[%clk 0:03:01]} 9. h3 {[%clk 0:02:58.3]} 9... h6 {[%clk 0:03:01.1]} 10. Re1
{[%clk 0:02:58.4]} 10... Re8 {[%clk 0:02:59.2]} 11. Nf1 {[%clk 0:02:58]} 11...
Be6 {[%clk 0:02:58.7]} 12. Ng3 {[%clk 0:02:42.6]} 12... d5 {[%clk 0:02:54.7]}
13. Qe2 {[%clk 0:02:34]} 13... Qd7 {[%clk 0:02:52.4]} 14. Nh4 {[%clk 0:02:30.5]}
14... Rad8 {[%clk 0:02:46.7]} 15. Qf3 {[%clk 0:02:25.5]} 15... dxe4 {[%clk
0:02:40.6]} 16. dxe4 {[%clk 0:02:25.6]} 16... Bxb3 {[%clk 0:02:38.7]} 17. axb3
{[%clk 0:02:26.3]} 17... Qd3 {[%clk 0:02:39.8]} 18. Be3 {[%clk 0:02:27]} 18...
Bxe3 {[%clk 0:02:37.6]} 19. Rxe3 {[%clk 0:02:28.9]} 19... Qc2 {[%clk 0:02:35.9]}
20. Ngf5 {[%clk 0:02:05.9]} 20... Qxb2 {[%clk 0:02:29.4]} 21. Rae1 {[%clk
0:02:04.4]} 21... Re6 {[%clk 0:02:24.3]} 22. Qg3 {[%clk 0:02:04.4]} 22... Ne8
{[%clk 0:02:23.1]} 23. b4 {[%clk 0:01:32.7]} 23... Rd2 {[%clk 0:02:19.5]} 24.
Rf3 {[%clk 0:01:26.3]} 24... Qc2 {[%clk 0:02:10.8]} 25. Qg4 {[%clk 0:01:07.2]}
25... Rd1 {[%clk 0:01:55.3]} 26. Rxd1 {[%clk 0:00:47.6]} 26... Qxd1+ {[%clk
0:01:57.2]} 27. Kh2 {[%clk 0:00:49.3]} 27... Qd2 {[%clk 0:01:52.7]} 28. Rg3
{[%clk 0:00:46.3]} 28... Qf4 {[%clk 0:01:49.9]} 29. Qd1 {[%clk 0:00:24]} 29...
g6 {[%clk 0:01:28.9]} 30. Qd7 {[%clk 0:00:21.7]} 30... Kf8 {[%clk 0:01:20.8]}
31. Kg1 {[%clk 0:00:07]} 31... Qc1+ {[%clk 0:01:20.2]} 32. Kh2 {[%clk
0:00:08.1]} 32... Qf4 {[%clk 0:01:22.1]} 33. Kg1 {[%clk 0:00:09.6]} 33... gxf5
{[%clk 0:01:20.3]} 34. Nxf5 {[%clk 0:00:11.2]} 34... Rg6 {[%clk 0:01:12.7]} 35.
Rxg6 {[%clk 0:00:04.4]} 35... fxg6 {[%clk 0:01:13.7]} 36. Ne3 {[%clk 0:00:06.3]}
36... Qf7 {[%clk 0:01:12.9]} 37. Qc8 {[%clk 0:00:07.8]} 37... b6 {[%clk
0:00:54.1]} 38. Nd5 {[%clk 0:00:08.4]} 38... Kg7 {[%clk 0:00:50.5]} 39. Qxa6
{[%clk 0:00:09.3]} 39... Qd7 {[%clk 0:00:49.9]} 40. Qd3 {[%clk 0:00:06.8]} 40...
Ne7 {[%clk 0:00:47.3]} 41. Qg3 {[%clk 0:00:07.3]} 41... Nxd5 {[%clk 0:00:46.3]}
42. exd5 {[%clk 0:00:04.3]} 42... Qxd5 {[%clk 0:00:47]} 43. Qg4 {[%clk
0:00:05.9]} 43... Nf6 {[%clk 0:00:47.6]} 44. Qc8 {[%clk 0:00:07.2]} 44... Qd6
{[%clk 0:00:43.8]} 45. c4 {[%clk 0:00:08.4]} 45... h5 {[%clk 0:00:37.6]} 46. g3
{[%clk 0:00:08.2]} 46... c5 {[%clk 0:00:37]} 47. b5 {[%clk 0:00:09]} 47... e4
{[%clk 0:00:36.3]} 48. Qb7+ {[%clk 0:00:10.2]} 48... Kh6 {[%clk 0:00:33.1]} 49.
Qf7 {[%clk 0:00:10.3]} 49... e3 {[%clk 0:00:31.4]} 50. f4 {[%clk 0:00:04.3]}
50... Qd1+ {[%clk 0:00:27.2]} 51. Kg2 {[%clk 0:00:05.9]} 51... Qe2+ {[%clk
0:00:28.4]} 52. Kg1 {[%clk 0:00:07.5]} 52... Qf2+ {[%clk 0:00:27.6]} 53. Kh1
{[%clk 0:00:09.2]} 53... Nh7 {[%clk 0:00:18.8]} 54. g4 {[%clk 0:00:05.5]} 54...
hxg4 {[%clk 0:00:18.1]} 55. hxg4 {[%clk 0:00:07.4]} 55... Qh4+ {[%clk
0:00:19.3]} 56. Kg2 {[%clk 0:00:08.1]} 56... Qxg4+ {[%clk 0:00:20.8]} 57. Kf1
{[%clk 0:00:10]} 57... Qg3 {[%clk 0:00:20.3]} 58. Ke2 {[%clk 0:00:10]} 58...
Qf2+ {[%clk 0:00:21.3]} 59. Kd3 {[%clk 0:00:11.7]} 59... e2 {[%clk 0:00:22.8]}
60. f5 {[%clk 0:00:12.7]} 60... Qd4+ {[%clk 0:00:24]} 61. Kxe2 {[%clk
0:00:13.8]} 61... Qe4+ {[%clk 0:00:25.3]} 62. Kd2 {[%clk 0:00:15]} 62... Qxf5
{[%clk 0:00:26.4]} 63. Qb7 {[%clk 0:00:16]} 63... Qf4+ {[%clk 0:00:27.3]} 64.
Kc3 {[%clk 0:00:17.3]} 64... Qd4+ {[%clk 0:00:28.5]} 65. Kb3 {[%clk 0:00:18.8]}
65... Qd3+ {[%clk 0:00:30.1]} 66. Kb2 {[%clk 0:00:20.6]} 66... Qxc4 {[%clk
0:00:30.5]} 67. Qxb6 {[%clk 0:00:22.2]} 67... Ng5 {[%clk 0:00:31.1]} 68. Qc6
{[%clk 0:00:23.3]} 68... Ne4 {[%clk 0:00:31.2]} 69. b6 {[%clk 0:00:24.9]} 69...
Qc3+ {[%clk 0:00:32.6]} 70. Ka2 {[%clk 0:00:26.1]} 70... Nd2 {[%clk 0:00:31.9]}
71. Qh1+ {[%clk 0:00:25.1]} 71... Kg5 {[%clk 0:00:32.7]} 72. Qg2+ {[%clk
0:00:26.1]} 72... Kf4 {[%clk 0:00:28.9]} 73. Qf2+ {[%clk 0:00:23.9]} 73... Ke4
{[%clk 0:00:28.1]} 74. Qe2+ {[%clk 0:00:21.3]} 74... Kd4 {[%clk 0:00:28.5]} 75.
Qg4+ {[%clk 0:00:22.4]} 75... Kd3 {[%clk 0:00:28]} 76. Qxg6+ {[%clk 0:00:22.8]}
76... Kc4 {[%clk 0:00:25.8]} 77. Qf7+ {[%clk 0:00:19.1]} 77... Kb4 {[%clk
0:00:24.2]} 78. Qf4+ {[%clk 0:00:15]} 78... Ka5 {[%clk 0:00:21]} 79. Qf5 {[%clk
0:00:03.5]} 79... Qb3+ {[%clk 0:00:16.1]} 80. Ka1 {[%clk 0:00:05]} 80... Qa3#
{[%clk 0:00:17.8]} 0-1

[Event "*** Titled Tuesday Blitz"]
[Site "Chess.com"]
[Date "2019.06.04"]
[Round "6"]
[White "maciek_92"]
[Black "Shant_Sargsyan"]
[Result "1-0"]
[WhiteElo "2705"]
[BlackElo "3011"]
[TimeControl "180+2"]
[EndTime "14:23:07 PDT"]
[Termination "maciek_92 won by resignation"]

1. c4 {[%clk 0:03:01.9]} 1... e5 {[%clk 0:02:59.6]} 2. g3 {[%clk 0:03:01.2]}
2... Nf6 {[%clk 0:03:00.4]} 3. Nc3 {[%clk 0:03:00.7]} 3... d5 {[%clk 0:02:57.5]}
4. cxd5 {[%clk 0:03:01.4]} 4... Nxd5 {[%clk 0:02:59.4]} 5. Bg2 {[%clk 0:03:03]}
5... Nb6 {[%clk 0:03:00.9]} 6. e3 {[%clk 0:03:04.4]} 6... c6 {[%clk 0:03:02.3]}
7. Nf3 {[%clk 0:02:59.5]} 7... Bg4 {[%clk 0:02:58.5]} 8. O-O {[%clk 0:02:59.6]}
8... Be7 {[%clk 0:02:58]} 9. d4 {[%clk 0:02:42.1]} 9... exd4 {[%clk 0:02:57.6]}
10. Qxd4 {[%clk 0:02:42.9]} 10... Qxd4 {[%clk 0:02:58]} 11. Nxd4 {[%clk
0:02:44.3]} 11... O-O {[%clk 0:02:58.1]} 12. b3 {[%clk 0:02:40.4]} 12... Bf6
{[%clk 0:02:58.7]} 13. Ne4 {[%clk 0:02:27.9]} 13... Be7 {[%clk 0:02:53.9]} 14.
h3 {[%clk 0:02:26.9]} 14... Bc8 {[%clk 0:02:53.8]} 15. Bb2 {[%clk 0:02:19.4]}
15... Na6 {[%clk 0:02:54.7]} 16. Rfd1 {[%clk 0:02:18.7]} 16... Rd8 {[%clk
0:02:54.4]} 17. g4 {[%clk 0:02:08.5]} 17... Nb4 {[%clk 0:02:51.3]} 18. Ng3
{[%clk 0:02:04.7]} 18... a5 {[%clk 0:02:46.9]} 19. Ndf5 {[%clk 0:02:02.1]} 19...
Bxf5 {[%clk 0:02:42.2]} 20. Nxf5 {[%clk 0:02:02.2]} 20... Bf8 {[%clk 0:02:44.1]}
21. a3 {[%clk 0:01:50.8]} 21... Nc2 {[%clk 0:02:44.7]} 22. Rac1 {[%clk
0:01:51.6]} 22... Nxa3 {[%clk 0:02:45.5]} 23. Nxg7 {[%clk 0:01:49.7]} 23... Nac4
{[%clk 0:02:35.1]} 24. bxc4 {[%clk 0:01:43.3]} 24... Bxg7 {[%clk 0:02:35.8]} 25.
Bxg7 {[%clk 0:01:39]} 25... Kxg7 {[%clk 0:02:37.2]} 26. c5 {[%clk 0:01:40.3]}
26... Nd7 {[%clk 0:02:24.3]} 27. Rd3 {[%clk 0:01:25.2]} 27... a4 {[%clk
0:02:21.4]} 28. Ra3 {[%clk 0:01:21.7]} 28... Ra5 {[%clk 0:02:22.1]} 29. Rd1
{[%clk 0:01:20.7]} 29... Raa8 {[%clk 0:02:15.9]} 30. Rc1 {[%clk 0:01:06.6]}
30... Kf8 {[%clk 0:02:10.8]} 31. Be4 {[%clk 0:00:55.8]} 31... h6 {[%clk
0:02:09.7]} 32. Rc4 {[%clk 0:00:55.1]} 32... Ra5 {[%clk 0:02:03.1]} 33. Rcxa4
{[%clk 0:00:30.2]} 33... Rxa4 {[%clk 0:02:04.1]} 34. Rxa4 {[%clk 0:00:32.1]}
34... Nxc5 {[%clk 0:02:06]} 35. Rc4 {[%clk 0:00:34]} 35... Nxe4 {[%clk
0:02:07.3]} 36. Rxe4 {[%clk 0:00:35.9]} 36... b5 {[%clk 0:02:08.4]} 37. Kf1
{[%clk 0:00:32.6]} 37... c5 {[%clk 0:02:09.7]} 38. Re5 {[%clk 0:00:32.9]} 38...
Rc8 {[%clk 0:02:09.6]} 39. Ke2 {[%clk 0:00:34.4]} 39... f6 {[%clk 0:02:06.6]}
40. Rh5 {[%clk 0:00:33.2]} 40... Kg7 {[%clk 0:02:07]} 41. Kd2 {[%clk 0:00:33.9]}
41... b4 {[%clk 0:02:06.4]} 42. Kc2 {[%clk 0:00:34.2]} 42... c4 {[%clk
0:01:40.4]} 43. Rb5 {[%clk 0:00:34.5]} 43... b3+ {[%clk 0:01:42]} 44. Kc3 {[%clk
0:00:36.1]} 44... Kf7 {[%clk 0:01:41.1]} 45. f4 {[%clk 0:00:36.9]} 45... Ke6
{[%clk 0:01:42.3]} 46. e4 {[%clk 0:00:37.8]} 46... Kd6 {[%clk 0:01:43.5]} 47. h4
{[%clk 0:00:35.2]} 47... Ke6 {[%clk 0:01:44.2]} 48. Rb6+ {[%clk 0:00:34.6]}
48... Kf7 {[%clk 0:01:45.4]} 49. Rb7+ {[%clk 0:00:26.9]} 49... Ke6 {[%clk
0:01:29.6]} 50. Rb6+ {[%clk 0:00:27.8]} 50... Ke7 {[%clk 0:01:31]} 51. f5 {[%clk
0:00:21.6]} 51... Rc7 {[%clk 0:01:19.4]} 52. Re6+ {[%clk 0:00:22.5]} 52... Kf7
{[%clk 0:01:20.6]} 53. Rb6 {[%clk 0:00:20.3]} 53... Kg7 {[%clk 0:01:14.1]} 54.
Rb4 {[%clk 0:00:14.9]} 54... Kg8 {[%clk 0:01:08.9]} 55. Rb6 {[%clk 0:00:15]}
55... Kf7 {[%clk 0:01:10.3]} 56. Rb5 {[%clk 0:00:12.6]} 56... Ke8 {[%clk
0:01:09.7]} 57. Rb6 {[%clk 0:00:12.3]} 57... Kd8 {[%clk 0:00:55.9]} 58. Rb8+
{[%clk 0:00:06.2]} 58... Ke7 {[%clk 0:00:56.6]} 59. Rb6 {[%clk 0:00:07.5]} 59...
Rc8 {[%clk 0:00:47.8]} 60. Re6+ {[%clk 0:00:05.2]} 60... Kf7 {[%clk 0:00:49]}
61. Rb6 {[%clk 0:00:06.6]} 61... Rc7 {[%clk 0:00:50.7]} 62. Rb8 {[%clk
0:00:06.7]} 62... Re7 {[%clk 0:00:49.2]} 63. Kxc4 {[%clk 0:00:06.6]} 63... Rxe4+
{[%clk 0:00:50.6]} 64. Kd5 {[%clk 0:00:08]} 64... Rxg4 {[%clk 0:00:52.5]} 65.
Rb7+ {[%clk 0:00:08.6]} 65... Ke8 {[%clk 0:00:27.8]} 66. Ke6 {[%clk 0:00:10.5]}
66... Re4+ {[%clk 0:00:17]} 67. Kxf6 {[%clk 0:00:11.8]} 67... Rxh4 {[%clk
0:00:18.4]} 68. Rxb3 {[%clk 0:00:12.9]} 68... Rh1 {[%clk 0:00:18]} 69. Rb8+
{[%clk 0:00:14.2]} 69... Kd7 {[%clk 0:00:19.6]} 70. Kf7 {[%clk 0:00:15.5]} 70...
h5 {[%clk 0:00:21.1]} 71. Rh8 {[%clk 0:00:14.7]} 71... h4 {[%clk 0:00:22.6]} 72.
f6 {[%clk 0:00:16.3]} 72... h3 {[%clk 0:00:23.9]} 73. Kf8 {[%clk 0:00:16.9]}
73... Rf1 {[%clk 0:00:15.2]} 74. f7 {[%clk 0:00:17.7]} 74... Rf3 {[%clk
0:00:16.6]} 75. Rh4 {[%clk 0:00:17.7]} 75... Ke6 {[%clk 0:00:13.8]} 76. Rh6+
{[%clk 0:00:18.7]} 76... Kf5 {[%clk 0:00:11.9]} 77. Kg7 {[%clk 0:00:16.2]} 77...
Kg5 {[%clk 0:00:04.9]} 78. Rg6+ {[%clk 0:00:16.8]} 78... Kf4 {[%clk 0:00:03.5]}
79. Rf6+ {[%clk 0:00:17.4]} 79... Kg3 {[%clk 0:00:04.7]} 80. Rxf3+ {[%clk
0:00:18.9]} 80... Kxf3 {[%clk 0:00:06.6]} 81. f8=Q+ {[%clk 0:00:20.7]} 81... Kg2
{[%clk 0:00:07.5]} 82. Qa8+ {[%clk 0:00:21.5]} 82... Kg1 {[%clk 0:00:09.2]} 83.
Qa1+ {[%clk 0:00:22.8]} 83... Kg2 {[%clk 0:00:10.8]} 84. Qb2+ {[%clk 0:00:24.7]}
84... Kg3 {[%clk 0:00:12.1]} 85. Qc3+ {[%clk 0:00:25.8]} 85... Kg2 {[%clk
0:00:14]} 86. Qd2+ {[%clk 0:00:26.6]} 86... Kg3 {[%clk 0:00:15.6]} 87. Qe3+
{[%clk 0:00:25.8]} 87... Kg2 {[%clk 0:00:16.5]} 88. Qe2+ {[%clk 0:00:26]} 88...
Kg3 {[%clk 0:00:17.8]} 89. Qe4 {[%clk 0:00:27.4]} 89... Kh2 {[%clk 0:00:14.2]}
90. Qf3 {[%clk 0:00:28.3]} 90... Kg1 {[%clk 0:00:15.5]} 91. Qxh3 {[%clk
0:00:30.2]} 1-0